bitfinex-derivatives/quotes_BTCF0:USTF0_20241003
["timestamp","ask_amount","ask_price","bid_price","bid_amount"]
[1727960274915,0.19448736,60587.0,60581.0,0.082546]
[1727960274916,0.1316763,60583.0,60581.0,0.082546]
[1727960275118,0.1316763,60585.0,60583.0,0.082543]
[1727960275426,0.0298494,60587.0,60586.0,0.082539]
[1727960275427,0.1615257,60587.0,60586.0,0.082539]
[1727960275625,0.1316763,60587.0,60586.0,0.342539]
[1727960275825,0.13170091,60588.0,60587.0,0.082538]
[1727960276018,0.14812211,60594.0,60587.0,0.19]
[1727960276219,0.14812211,60596.0,60594.0,0.082528]
[1727960276431,0.082525,60597.0,60593.0,0.19]
[1727960276432,0.11180723,60597.0,60596.0,0.082526]
[1727960276618,0.16247459,60597.0,60596.0,0.082526]
[1727960276826,0.02928223,60597.0,60596.0,0.082526]
[1727960277126,0.0024764,60598.0,60597.0,0.082524]
[1727960278329,0.1939,60607.0,60600.0,0.08252]
[1727960278330,0.02985026,60601.0,60600.0,0.08252]
[1727960278523,0.082508,60610.0,60601.0,0.082519]
[1727960278719,0.082508,60610.0,60600.0,0.27252]
[1727960278720,0.082508,60610.0,60609.0,0.082508]
[1727960279028,0.11156123,60610.0,60609.0,0.082508]
[1727960279527,0.02905323,60610.0,60609.0,0.082508]
[1727960279724,0.009,60610.0,60609.0,0.082508]
[1727960280324,0.017,60610.0,60609.0,0.083508]
[1727960280523,0.025,60610.0,60609.0,0.083508]
[1727960281827,0.191007,60610.0,60609.0,0.001]
[1727960282235,0.181007,60610.0,60609.0,0.001]
[1727960282439,0.167007,60610.0,60609.0,0.004]
[1727960282930,0.175007,60610.0,60609.0,0.001]
[1727960283135,0.179007,60610.0,60609.0,0.001]
[1727960283632,0.178007,60610.0,60609.0,0.001]
[1727960283834,0.180007,60610.0,60609.0,0.001]
[1727960284226,0.184007,60610.0,60609.0,0.001]
[1727960285039,0.1015,60610.0,60609.0,0.001]
[1727960285232,0.1015,60610.0,60609.0,0.083508]
[1727960285623,0.018,60610.0,60609.0,0.444308]
[1727960285827,0.019,60610.0,60609.0,0.444308]
[1727960286233,0.02,60610.0,60609.0,0.444308]
[1727960286423,0.06040968,60610.0,60609.0,0.444308]
[1727960286930,0.04740968,60610.0,60609.0,0.444308]
[1727960287131,0.04740968,60610.0,60609.0,1.539268]
[1727960287326,0.04740968,60610.0,60609.0,1.538268]
[1727960287629,0.04740968,60610.0,60609.0,1.542268]
[1727960288333,0.04740912,60610.0,60609.0,1.542268]
[1727960288538,0.04040912,60610.0,60609.0,1.542268]
[1727960288839,0.04140912,60610.0,60609.0,1.542268]
[1727960289026,0.04140912,60610.0,60609.0,0.447308]
[1727960290545,0.12391612,60610.0,60603.0,0.082516]
[1727960290835,0.082513,60606.0,60605.0,0.082513]
[1727960291038,0.082513,60606.0,60605.0,0.272513]
[1727960291039,0.09106813,60606.0,60605.0,0.272513]
[1727960291247,0.04040912,60606.0,60605.0,0.272513]
[1727960291451,0.001,60610.0,60609.0,0.082508]
[1727960291743,0.04140916,60610.0,60609.0,0.673708]
[1727960291933,0.001,60610.0,60609.0,1.768668]
[1727960292530,0.02978106,60614.0,60613.0,0.082502]
[1727960292729,0.14812211,60621.0,60613.0,0.272502]
[1727960292938,0.04040641,60620.0,60619.0,0.082494]
[1727960293533,0.12139,60622.0,60621.0,0.082492]
[1727960294238,0.06867831,60622.0,60621.0,0.082492]
[1727960294843,0.15116831,60622.0,60621.0,0.082492]
[1727960295346,0.086493,60620.0,60619.0,0.001]
[1727960295545,0.276493,60620.0,60619.0,0.001]
[1727960295846,0.276493,60620.0,60617.0,0.082496]
[1727960296235,0.272493,60620.0,60617.0,0.082496]
[1727960296830,0.19,60620.0,60618.0,0.082496]
[1727960297135,0.19,60620.0,60619.0,0.083494]
[1727960297136,0.199,60620.0,60619.0,0.083494]
[1727960298637,0.197,60620.0,60619.0,0.082494]
[1727960299035,0.195,60620.0,60619.0,0.082494]
[1727960299341,0.198,60620.0,60619.0,0.082494]
[1727960299546,0.2,60620.0,60619.0,0.083494]
[1727960299935,0.197,60620.0,60619.0,0.083494]
[1727960300236,0.197,60620.0,60619.0,0.001]
[1727960300237,0.283493,60620.0,60619.0,0.001]
[1727960301142,0.201,60620.0,60619.0,0.001]
[1727960302535,0.201,60620.0,60618.0,0.082496]
[1727960302536,0.194,60620.0,60618.0,0.082496]
[1727960302731,0.197,60620.0,60619.0,0.001]
[1727960302944,0.201,60620.0,60619.0,0.001]
[1727960303335,0.201,60620.0,60619.0,0.083494]
[1727960303734,0.282493,60620.0,60619.0,0.001]
[1727960304345,0.32290343,60620.0,60619.0,0.001]
[1727960304543,0.082497,60618.0,60613.0,0.082502]
[1727960304744,0.19,60614.0,60613.0,0.082502]
[1727960305740,0.19,60618.0,60616.0,0.082498]
[1727960305941,0.011,60620.0,60617.0,0.082497]
[1727960306140,0.011,60620.0,60619.0,0.082494]
[1727960306340,0.05140812,60620.0,60619.0,0.082494]
[1727960306535,0.04040812,60620.0,60619.0,0.082494]
[1727960306947,0.2289,60621.0,60613.0,0.001]
[1727960307247,0.2289,60621.0,60620.0,0.082493]
[1727960307437,0.07930815,60621.0,60620.0,0.082493]
[1727960307635,0.06867831,60622.0,60619.0,0.001]
[1727960307835,0.06867831,60622.0,60621.0,0.082492]
[1727960308245,0.02977831,60622.0,60621.0,0.082492]
[1727960308552,0.0404046,60622.0,60621.0,0.082492]
[1727960308843,0.09104902,60622.0,60620.0,0.082493]
[1727960309050,0.09104902,60621.0,60620.0,0.082493]
[1727960309549,0.09204902,60621.0,60620.0,0.082493]
[1727960309958,0.09104902,60621.0,60620.0,0.083493]
[1727960310251,0.09104902,60621.0,60620.0,1.178373]
[1727960310444,0.09104902,60621.0,60620.0,1.177373]
[1727960310646,0.03454902,60621.0,60620.0,1.539173]
[1727960310952,0.013,60621.0,60620.0,1.539173]
[1727960311450,0.0301048,60630.0,60621.0,0.082492]
[1727960311451,0.13361238,60622.0,60621.0,0.082492]
[1727960311653,0.13361238,60622.0,60621.0,1.408932]
[1727960312148,0.18116165,60629.0,60621.0,1.408932]
[1727960312149,0.16468096,60628.0,60621.0,1.408932]
[1727960312353,0.16468096,60628.0,60627.0,0.082483]
[1727960312753,0.16468096,60628.0,60627.0,1.177323]
[1727960313154,0.16468096,60630.0,60629.0,0.082481]
[1727960313349,0.082479,60630.0,60629.0,0.082481]
[1727960313557,0.082487,60627.0,60626.0,0.082484]
[1727960314963,0.082487,60627.0,60623.0,0.082488]
[1727960314964,0.082489,60624.0,60623.0,0.082488]
[1727960316153,0.13312941,60624.0,60623.0,0.083488]
[1727960316357,0.13312941,60624.0,60623.0,0.084488]
[1727960316358,0.19916165,60624.0,60623.0,0.084488]
[1727960316561,0.018,60624.0,60623.0,0.084488]
[1727960317757,0.0472028,60624.0,60623.0,0.084488]
[1727960318053,0.018,60624.0,60623.0,0.084488]
[1727960319857,0.100487,60624.0,60623.0,0.002]
[1727960321860,0.082492,60621.0,60620.0,0.3608]
[1727960322052,0.272492,60621.0,60620.0,0.3608]
[1727960322363,0.272492,60621.0,60612.0,0.3608]
[1727960322364,0.082502,60613.0,60612.0,0.3608]
[1727960322558,0.19,60613.0,60612.0,0.443304]
[1727960323557,0.35454462,60613.0,60612.0,0.443304]
[1727960323756,0.44560768,60613.0,60612.0,0.443304]
[1727960323962,0.44560768,60613.0,60612.0,0.444304]
[1727960324468,0.28106306,60613.0,60612.0,0.444304]
[1727960324847,0.28106306,60613.0,60612.0,0.448304]
[1727960325257,0.36356506,60613.0,60612.0,0.3658]
[1727960325456,0.40636506,60613.0,60612.0,0.3658]
[1727960325651,0.40936506,60613.0,60612.0,0.3618]
[1727960326049,0.40936506,60613.0,60612.0,0.001]
[1727960326255,0.082509,60608.0,60604.0,0.082514]
[1727960326448,0.36357206,60608.0,60607.0,0.08498511]
[1727960326653,0.54461574,60608.0,60607.0,0.00247411]
[1727960326862,0.54462211,60608.0,60607.0,0.00247411]
[1727960327655,0.36357206,60608.0,60607.0,0.00247411]
[1727960327861,0.37057206,60608.0,60607.0,0.00347411]
[1727960328258,0.37657206,60608.0,60607.0,0.00347411]
[1727960328457,0.37657206,60608.0,60607.0,0.00247411]
[1727960328458,0.36957206,60608.0,60607.0,0.00247411]
[1727960328655,0.37857206,60608.0,60607.0,0.00347411]
[1727960329161,0.37857206,60608.0,60600.0,0.08252]
[1727960329363,0.35448951,60601.0,60600.0,0.08252]
[1727960329571,0.44555257,60601.0,60600.0,0.08252]
[1727960329877,0.28106306,60601.0,60600.0,0.08252]
[1727960330766,0.28206306,60601.0,60600.0,0.08252]
[1727960331365,0.52899081,60601.0,60599.0,0.082521]
[1727960331565,0.0416,60600.0,60599.0,0.082521]
[1727960332462,0.0845,60600.0,60599.0,0.082521]
[1727960332668,0.0845,60600.0,60598.0,0.3608]
[1727960332869,0.11374459,60600.0,60599.0,0.085521]
[1727960334761,0.11374459,60600.0,60599.0,0.446321]
[1727960335265,0.11374459,60600.0,60599.0,0.443321]
[1727960335457,0.11574459,60600.0,60599.0,0.443321]
[1727960335659,0.082521,60599.0,60598.0,0.004]
[1727960335861,0.08253,60594.0,60590.0,0.082533]
[1727960336071,0.082532,60592.0,60590.0,0.082533]
[1727960336271,0.082532,60591.0,60590.0,0.082533]
[1727960336456,0.082536,60589.0,60587.0,0.00247548]
[1727960336657,0.317636,60588.0,60587.0,0.00247548]
[1727960338464,0.318636,60588.0,60587.0,0.01347548]
[1727960339161,0.318636,60588.0,60587.0,0.37427548]
[1727960339362,0.319636,60588.0,60587.0,0.37427548]
[1727960340271,0.319636,60588.0,60587.0,0.01347548]
[1727960340575,0.319636,60588.0,60585.0,0.35]
[1727960340576,0.082539,60586.0,60585.0,0.35]
[1727960341869,0.083539,60586.0,60585.0,0.351]
[1727960342181,0.084539,60586.0,60585.0,0.362]
[1727960342477,1.179699,60586.0,60585.0,0.362]
[1727960342772,1.179699,60586.0,60585.0,0.294]
[1727960343373,1.540499,60586.0,60585.0,0.294]
[1727960343963,1.540499,60586.0,60585.0,0.283]
[1727960344776,0.082556,60574.0,60573.0,0.0039]
[1727960344975,0.082558,60572.0,60567.0,0.3608]
[1727960345272,0.0858,60573.0,60570.0,0.082561]
[1727960345669,0.082558,60572.0,60567.0,0.443364]
[1727960345870,0.081558,60572.0,60567.0,0.443365]
[1727960346267,0.081558,60572.0,60568.0,0.082563]
[1727960346880,0.081558,60572.0,60569.0,0.082562]
[1727960347175,0.272558,60572.0,60569.0,0.082562]
[1727960347770,0.282558,60572.0,60567.0,0.3608]
[1727960347971,0.282558,60572.0,60568.0,0.082563]
[1727960348171,0.282558,60572.0,60567.0,0.3608]
[1727960348564,0.643358,60572.0,60568.0,0.082564]
[1727960348780,0.19,60569.0,60558.0,0.0452]
[1727960348985,0.3718,60572.0,60559.0,0.126475]
[1727960348986,0.19,60560.0,60559.0,0.126475]
[1727960349173,0.0412595,60564.0,60559.0,0.082575]
[1727960349480,0.082563,60569.0,60555.0,0.3632768]
[1727960349481,0.082576,60559.0,60555.0,0.41265727]
[1727960349693,0.19,60556.0,60555.0,0.4458578]
[1727960349874,0.14042751,60556.0,60555.0,0.4458578]
[1727960350068,0.14042751,60556.0,60555.0,0.3632768]
[1727960350575,0.22300751,60556.0,60555.0,0.3632768]
[1727960351578,0.22300751,60556.0,60555.0,0.0024768]
[1727960351879,0.25258087,60556.0,60555.0,0.0024768]
[1727960352067,0.17000087,60556.0,60549.0,0.41018047]
[1727960352270,0.272587,60551.0,60550.0,0.04938047]
[1727960352472,0.272587,60551.0,60549.0,0.3608]
[1727960352473,0.082588,60550.0,60549.0,0.04938047]
[1727960352673,0.082588,60550.0,60540.0,0.17179837]
[1727960352674,0.082588,60550.0,60547.0,0.04938047]
[1727960352876,0.082588,60550.0,60541.0,0.06578456]
[1727960352877,0.082598,60543.0,60541.0,0.06578456]
[1727960353267,0.19,60544.0,60540.0,0.06578456]
[1727960353473,0.082598,60543.0,60542.0,0.44299837]
[1727960353669,0.082598,60543.0,60542.0,0.56885249]
[1727960354077,0.082598,60543.0,60542.0,0.3608]
[1727960354568,0.19,60544.0,60541.0,0.08219837]
[1727960354884,0.082599,60542.0,60541.0,0.08219837]
[1727960355181,0.2202024,60544.0,60541.0,0.12585439]
[1727960355380,0.007,60543.0,60542.0,0.2077875]
[1727960355578,0.197,60543.0,60542.0,0.0819333]
[1727960355776,0.279598,60543.0,60542.0,0.0819333]
[1727960356282,0.007,60543.0,60542.0,0.20778722]
[1727960356475,0.007,60543.0,60542.0,0.12585392]
[1727960356873,0.0372024,60544.0,60542.0,0.12585392]
[1727960357180,0.0372024,60544.0,60543.0,0.12585392]
[1727960357376,0.2222024,60544.0,60543.0,0.12585392]
[1727960357775,0.2202024,60544.0,60543.0,0.12585392]
[1727960358079,0.2272024,60544.0,60541.0,0.0826]
[1727960358680,0.2322024,60544.0,60541.0,0.0826]
[1727960359177,0.2322024,60544.0,60543.0,0.082598]
[1727960359384,0.2282024,60544.0,60543.0,0.082598]
[1727960359586,0.2302024,60544.0,60543.0,0.082598]
[1727960360184,0.2272024,60544.0,60543.0,0.082598]
[1727960360777,0.2302024,60544.0,60543.0,0.20844883]
[1727960360980,0.2302024,60544.0,60543.0,0.38585083]
[1727960361276,0.2322024,60544.0,60543.0,0.36144024]
[1727960361481,0.2292024,60544.0,60543.0,0.18403824]
[1727960361880,0.2252024,60544.0,60543.0,0.18403824]
[1727960362075,0.2272024,60544.0,60543.0,0.18403824]
[1727960363186,0.2302024,60544.0,60543.0,0.18403824]
[1727960363384,0.0402024,60544.0,60543.0,0.18403824]
[1727960363588,0.0362024,60544.0,60543.0,0.18403824]
[1727960363791,0.0362024,60544.0,60543.0,1.27955824]
[1727960363984,0.0362024,60544.0,60543.0,1.178118]
[1727960363985,0.0342024,60544.0,60543.0,1.178118]
[1727960364186,0.0352024,60544.0,60543.0,1.178118]
[1727960364388,0.005,60544.0,60543.0,1.178118]
[1727960364978,0.001,60544.0,60543.0,1.178118]
[1727960365186,0.005,60544.0,60543.0,0.838118]
[1727960365392,0.005,60544.0,60543.0,0.342598]
[1727960365585,0.005,60544.0,60543.0,0.838118]
[1727960365891,0.005,60544.0,60543.0,0.99130397]
[1727960366493,0.005,60544.0,60543.0,0.49578397]
[1727960367691,0.005,60544.0,60543.0,0.99130397]
[1727960368285,0.005,60544.0,60543.0,1.35210397]
[1727960368887,0.005,60544.0,60543.0,0.85658397]
[1727960369087,0.005,60544.0,60543.0,0.15318597]
[1727960369088,0.087596,60544.0,60543.0,0.15318597]
[1727960370081,0.087596,60544.0,60538.0,0.21392701]
[1727960370293,0.19,60543.0,60542.0,0.082599]
[1727960370678,0.082603,60539.0,60538.0,0.13132301]
[1727960370884,0.082605,60538.0,60534.0,0.08219469]
[1727960371189,0.19,60535.0,60534.0,0.08219963]
[1727960372291,0.19,60535.0,60532.0,0.444773]
[1727960372489,0.19,60535.0,60532.0,0.443413]
[1727960373285,0.19,60535.0,60533.0,0.08261]
[1727960373485,0.191,60535.0,60534.0,0.08261]
[1727960374092,0.22114343,60535.0,60534.0,0.08261]
[1727960374291,0.17255708,60535.0,60534.0,0.08261]
[1727960374596,0.17155708,60535.0,60534.0,0.08261]
[1727960375091,0.17155708,60535.0,60534.0,0.18124362]
[1727960375288,0.17155708,60535.0,60534.0,0.08261]
[1727960375289,0.03114343,60535.0,60534.0,0.08261]
[1727960375595,0.03114343,60535.0,60534.0,0.18124362]
[1727960375795,0.03114343,60535.0,60534.0,0.08261]
[1727960376187,0.03114343,60535.0,60534.0,0.30711051]
[1727960376386,0.03114343,60535.0,60534.0,0.20847689]
[1727960377289,0.19,60535.0,60534.0,0.81291166]
[1727960377488,0.19,60535.0,60534.0,0.74729541]
[1727960378095,0.19,60535.0,60534.0,0.89552166]
[1727960378391,0.19,60535.0,60534.0,0.74729541]
[1727960379198,0.19,60536.0,60535.0,0.082609]
[1727960379495,0.19,60536.0,60535.0,0.541981]
[1727960380887,0.19,60536.0,60535.0,0.74540221]
[1727960381088,0.05776544,60536.0,60535.0,0.90986277]
[1727960381994,0.05776544,60536.0,60535.0,0.74540221]
[1727960384286,0.05776544,60536.0,60535.0,0.541981]
[1727960384486,0.08809873,60536.0,60535.0,0.541981]
[1727960384894,0.08809873,60536.0,60535.0,0.53903941]
[1727960385400,0.17070573,60536.0,60535.0,0.53903941]
[1727960385802,0.08809873,60536.0,60535.0,0.65447677]
[1727960386001,0.17070573,60536.0,60535.0,0.27883785]
[1727960386500,0.08809873,60536.0,60535.0,0.36144685]
[1727960387800,0.17070573,60536.0,60535.0,0.27883785]
[1727960388005,0.17070573,60536.0,60535.0,0.12587885]
[1727960388210,0.17070573,60536.0,60532.0,0.3608]
[1727960388211,0.66626573,60536.0,60532.0,0.3608]
[1727960388400,0.66626573,60536.0,60520.0,0.5106266]
[1727960388401,0.082621,60526.0,60525.0,0.11543736]
[1727960388599,0.082621,60526.0,60525.0,0.15324356]
[1727960389700,0.19,60528.0,60525.0,0.15324356]
[1727960389895,0.19,60528.0,60522.0,0.082626]
[1727960390096,0.3608,60526.0,60523.0,0.082625]
[1727960390305,0.3628,60526.0,60523.0,0.082625]
[1727960390803,0.19,60524.0,60523.0,0.082625]
[1727960392205,0.19,60524.0,60520.0,0.08234172]
[1727960392408,0.19,60524.0,60522.0,0.082626]
[1727960392707,0.19,60524.0,60522.0,0.14849938]
[1727960392902,0.191,60524.0,60522.0,0.14849938]
[1727960393109,0.192,60524.0,60522.0,0.082626]
[1727960393293,0.192,60524.0,60523.0,0.082625]
[1727960393501,0.191,60524.0,60523.0,0.082625]
[1727960393699,0.192,60524.0,60523.0,0.082625]
[1727960394308,0.192,60524.0,60518.0,0.06587338]
[1727960394502,0.19,60519.0,60518.0,0.14850538]
[1727960395005,0.19,60519.0,60518.0,0.14848013]
[1727960395308,0.19,60519.0,60513.0,0.082638]
[1727960395309,0.5508,60519.0,60513.0,0.06583469]
[1727960395499,0.19,60514.0,60513.0,0.082639]
[1727960395903,0.19,60514.0,60513.0,0.14847369]
[1727960396707,0.22108815,60514.0,60513.0,0.14846099]
[1727960397005,0.22108815,60514.0,60513.0,0.082639]
[1727960397403,0.22108815,60514.0,60513.0,0.14846099]
[1727960397704,0.22108815,60514.0,60513.0,0.082639]
[1727960398605,0.03108815,60514.0,60513.0,0.082639]
[1727960399410,0.06410769,60517.0,60514.0,0.082637]
[1727960399797,0.06410769,60517.0,60515.0,0.16491773]
[1727960400001,0.06410769,60517.0,60515.0,0.082636]
[1727960400201,0.02985943,60517.0,60516.0,0.082635]
[1727960400398,0.19,60522.0,60521.0,0.082628]
[1727960400600,0.272626,60522.0,60521.0,0.082628]
[1727960400802,0.19,60522.0,60521.0,0.082628]
[1727960401515,0.272627,60522.0,60520.0,0.06583867]
[1727960401699,0.272628,60521.0,60520.0,0.082629]
[1727960402097,0.19,60521.0,60520.0,0.082629]
[1727960403020,0.0304759,60521.0,60520.0,0.082629]
[1727960403219,0.36168,60526.0,60525.0,0.082622]
[1727960403510,0.082606,60537.0,60525.0,0.082622]
[1727960403511,0.0297583,60528.0,60525.0,1.043422]
[1727960403715,0.0039,60540.0,60539.0,0.082603]
[1727960403904,0.0039,60540.0,60526.0,0.70419421]
[1727960403905,0.082604,60539.0,60535.0,0.14838531]
[1727960404107,0.19,60536.0,60535.0,0.082608]
[1727960404905,0.08261,60534.0,60530.0,0.06577415]
[1727960405112,0.19,60531.0,60525.0,0.3608]
[1727960405420,0.19,60526.0,60525.0,0.443422]
[1727960405607,0.19,60526.0,60520.0,0.06577415]
[1727960405608,0.082622,60525.0,60520.0,0.06577415]
[1727960405809,0.5508,60526.0,60518.0,0.443431]
[1727960405810,0.19,60522.0,60518.0,0.443431]
[1727960406016,0.19,60522.0,60518.0,0.082631]
[1727960406215,0.19,60522.0,60512.0,0.08222164]
[1727960406216,0.082633,60517.0,60512.0,0.08222164]
[1727960406515,0.19,60513.0,60511.0,0.08222164]
[1727960406714,0.36886782,60519.0,60508.0,0.082645]
[1727960406715,0.19,60512.0,60508.0,0.082645]
[1727960406904,0.19,60512.0,60509.0,0.082644]
[1727960407103,0.36886782,60519.0,60509.0,0.082644]
[1727960407104,0.19,60510.0,60509.0,0.082644]
[1727960407309,0.001,60517.0,60510.0,0.082643]
[1727960407514,0.001,60517.0,60516.0,0.082635]
[1727960409215,0.0039,60525.0,60524.0,0.082624]
[1727960409412,0.5955,60533.0,60532.0,0.082613]
[1727960409612,0.5955,60533.0,60532.0,0.078713]
[1727960410026,0.3608,60539.0,60538.0,0.082605]
[1727960410218,0.443403,60539.0,60535.0,0.082608]
[1727960410420,0.19,60537.0,60536.0,0.082607]
[1727960410611,0.39059721,60539.0,60538.0,0.082605]
[1727960410919,0.39059721,60539.0,60533.0,0.082611]
[1727960411126,0.39059721,60539.0,60524.0,0.3608]
[1727960411127,0.5508,60534.0,60524.0,0.08222164]
[1727960411424,0.5508,60534.0,60516.0,0.004]
[1727960411425,0.192,60525.0,60523.0,0.082625]
[1727960411606,0.19,60524.0,60519.0,0.08263]
[1727960411812,0.19,60520.0,60519.0,0.08263]
[1727960412611,0.19,60520.0,60513.0,0.08222164]
[1727960412818,0.19,60515.0,60514.0,0.082637]
[1727960413620,0.29,60519.0,60515.0,0.082635]
[1727960413824,0.29,60519.0,60513.0,0.08222164]
[1727960414025,0.001,60515.0,60514.0,0.084637]
[1727960414218,0.02976894,60525.0,60514.0,0.78857464]
[1727960414420,0.082622,60526.0,60524.0,0.082624]
[1727960414614,0.0448,60527.0,60526.0,0.082621]
[1727960415013,0.03048041,60527.0,60526.0,0.082621]
[1727960415215,0.082616,60530.0,60528.0,0.082618]
[1727960415527,0.082616,60530.0,60520.0,0.08222164]
[1727960415826,0.082616,60530.0,60529.0,0.082617]
[1727960416025,0.08262,60527.0,60521.0,0.0411]
[1727960416228,0.29,60522.0,60521.0,0.082628]
[1727960416621,0.08263,60520.0,60518.0,0.16485364]
[1727960416821,0.082633,60518.0,60515.0,0.082636]
[1727960417025,0.29,60516.0,60512.0,0.08222164]
[1727960417225,0.082639,60513.0,60511.0,0.08222164]
[1727960417528,0.082639,60513.0,60501.0,0.124554]
[1727960417529,0.29,60512.0,60503.0,0.08222164]
[1727960417718,0.082633,60518.0,60502.0,0.16487464]
[1727960417719,0.29,60504.0,60502.0,0.16487464]
[1727960417916,0.29,60504.0,60503.0,0.082652]
[1727960418832,0.29,60508.0,60504.0,0.082651]
[1727960419132,0.29,60508.0,60505.0,0.082649]
[1727960419321,0.29,60508.0,60507.0,0.082647]
[1727960419723,0.001,60513.0,60502.0,0.372654]
[1727960419933,0.001,60513.0,60512.0,0.08264]
[1727960420225,0.002,60513.0,60512.0,0.08264]
[1727960420429,0.03174146,60513.0,60512.0,0.08264]
[1727960420620,0.02974146,60513.0,60512.0,0.08264]
[1727960420819,0.29,60517.0,60514.0,0.082637]
[1727960421220,0.29,60517.0,60515.0,0.082636]
[1727960421419,0.29,60517.0,60516.0,0.082635]
[1727960421626,0.444311,60519.0,60518.0,0.082632]
[1727960421627,0.36168,60519.0,60518.0,0.082632]
[1727960421820,0.3608,60519.0,60518.0,0.082632]
[1727960422925,0.3608,60519.0,60514.0,0.08422164]
[1727960422926,0.082636,60515.0,60514.0,0.002]
[1727960423121,0.67997651,60519.0,60507.0,0.08222164]
[1727960423122,0.082632,60518.0,60507.0,0.08222164]
[1727960423325,0.082632,60518.0,60503.0,0.08222164]
[1727960423326,0.082648,60506.0,60503.0,0.08222164]
[1727960423525,0.372648,60506.0,60501.0,0.08222164]
[1727960423736,0.372648,60506.0,60500.0,0.16487664]
[1727960424128,0.372648,60506.0,60499.0,0.3608]
[1727960424129,0.372648,60506.0,60501.0,0.082655]
[1727960424333,0.29,60502.0,60501.0,0.082655]
[1727960425535,0.001,60502.0,60501.0,0.085655]
[1727960425929,0.001,60502.0,60501.0,0.16787664]
[1727960426236,0.001,60502.0,60501.0,0.003]
[1727960426430,0.291,60502.0,60501.0,0.003]
[1727960427233,0.291,60502.0,60501.0,0.085655]
[1727960427437,0.001,60502.0,60501.0,0.085655]
[1727960427641,0.002,60502.0,60501.0,0.085655]
[1727960427845,0.002,60502.0,60501.0,0.003]
[1727960428339,0.03207444,60502.0,60501.0,0.085655]
[1727960428539,0.002,60502.0,60501.0,0.085655]
[1727960429234,0.374654,60502.0,60501.0,0.003]
[1727960429733,0.002,60502.0,60501.0,0.085655]
[1727960429939,0.002,60502.0,60501.0,0.003]
[1727960430146,0.292,60502.0,60501.0,0.003]
[1727960430443,0.08266,60498.0,60492.0,0.082667]
[1727960430637,0.08266,60498.0,60484.0,0.36216]
[1727960430638,0.29,60494.0,60484.0,0.443478]
[1727960430839,0.29,60494.0,60486.0,0.26247967]
[1727960431137,0.29,60494.0,60487.0,0.082674]
[1727960431330,0.29,60494.0,60492.0,0.082667]
[1727960431527,0.29,60494.0,60493.0,0.082666]
[1727960431936,0.291,60494.0,60493.0,0.082666]
[1727960432938,0.001,60494.0,60493.0,0.082666]
[1727960433932,0.001,60498.0,60497.0,0.082661]
[1727960434130,0.082648,60506.0,60502.0,0.082654]
[1727960435146,0.29,60510.0,60502.0,0.082654]
[1727960435147,0.082645,60509.0,60502.0,0.082654]
[1727960435543,0.0303642,60505.0,60502.0,0.082654]
[1727960436545,0.3618,60503.0,60502.0,0.082654]
[1727960436741,0.3618,60503.0,60495.0,0.044]
[1727960436938,0.3618,60503.0,60499.0,0.082657]
[1727960436939,0.082657,60500.0,60499.0,0.082657]
[1727960437841,0.0417,60502.0,60500.0,0.082655]
[1727960438745,0.29,60501.0,60500.0,0.082655]
[1727960440348,0.291,60501.0,60500.0,0.082655]
[1727960441343,0.001,60501.0,60500.0,0.082655]
[1727960441563,0.002,60501.0,60500.0,0.082655]
[1727960442340,0.0424,60510.0,60500.0,0.082655]
[1727960442341,0.0038,60512.0,60510.0,0.082643]
[1727960442540,0.082634,60517.0,60510.0,0.082643]
[1727960443047,0.3608,60519.0,60510.0,1.0958]
[1727960443254,0.0296443,60520.0,60518.0,0.082632]
[1727960443442,0.0296443,60520.0,60512.0,0.29]
[1727960443443,0.082633,60518.0,60514.0,0.082637]
[1727960443647,0.29,60515.0,60513.0,0.082638]
[1727960443843,0.082645,60509.0,60505.0,0.08512794]
[1727960444041,0.29,60506.0,60505.0,0.08512894]
[1727960444240,0.29,60506.0,60505.0,0.34512894]
[1727960444956,0.29,60506.0,60505.0,0.08512894]
[1727960445347,0.29,60506.0,60505.0,0.08265]
[1727960445348,0.291,60506.0,60505.0,0.08265]
[1727960446146,0.292,60506.0,60505.0,0.08465]
[1727960446545,0.32212133,60506.0,60505.0,0.002]
[1727960446744,0.40476933,60506.0,60505.0,0.002]
[1727960447345,0.32212133,60506.0,60505.0,0.08465]
[1727960449752,0.03212133,60506.0,60505.0,0.08465]
[1727960451153,0.07260372,60506.0,60505.0,0.08465]
[1727960452549,0.03212133,60506.0,60505.0,0.08465]
[1727960456455,0.11476933,60506.0,60505.0,0.002]
[1727960456652,0.20096933,60506.0,60505.0,0.002]
[1727960457058,1.29680933,60506.0,60505.0,0.002]
[1727960457461,0.11832133,60506.0,60505.0,0.002]
[1727960457659,0.03212133,60506.0,60505.0,0.08465]
[1727960459555,0.0424804,60506.0,60505.0,0.08465]
[1727960461057,0.17405741,60506.0,60505.0,1.18049]
[1727960461258,0.13357701,60506.0,60505.0,1.18049]
[1727960462064,0.06397701,60506.0,60505.0,1.54129]
[1727960462359,3.9e-07,60507.0,60506.0,0.578448]
[1727960462661,3.9e-07,60507.0,60506.0,0.868448]
[1727960462856,3.9e-07,60507.0,60506.0,1.728448]
[1727960463559,6e-08,60513.0,60512.0,0.08264]
[1727960463859,6e-08,60513.0,60512.0,1.4684]
[1727960464260,6e-08,60513.0,60512.0,1.7284]
[1727960464454,6e-08,60513.0,60512.0,2.0892]
[1727960464652,6e-08,60513.0,60512.0,1.1992]
[1727960464854,6e-08,60513.0,60512.0,0.70344]
[1727960465561,6e-08,60513.0,60512.0,0.44344]
[1727960465869,0.372635,60516.0,60515.0,0.082635]